bitfinex/quotes_SOLUSD_20250811
["timestamp","ask_amount","ask_price","bid_price","bid_amount"]
[1754903065832,26.0,184.15,184.1,4.80565167]
[1754903066037,58.71686616,184.14,184.12,4.80565167]
[1754903066251,58.71686616,184.14,184.03,5.43389664]
[1754903066252,26.0,184.12,184.11,4.80565167]
[1754903066655,58.71686616,184.14,184.11,4.80565167]
[1754903066857,58.71686616,184.14,184.12,4.80565167]
[1754903069846,58.71686616,184.14,184.13,4.80565167]
[1754903070232,31.43044225,184.15,184.13,4.80565167]
[1754903070446,31.43044225,184.15,184.14,4.80565167]
[1754903070447,84.71665782,184.15,184.14,4.80565167]
[1754903070758,64.18,184.17,184.14,4.80565167]
[1754903070955,64.18,184.17,184.07,5.49265874]
[1754903070956,69.60984078,184.17,184.07,5.49265874]
[1754903071263,5.43035568,184.15,184.13,4.80565167]
[1754903071554,5.43035568,184.15,184.14,4.80565167]
[1754903075738,5.43035568,184.15,184.13,4.80565167]
[1754903075957,5.43035568,184.15,184.07,0.06]
[1754903075958,5.43035568,184.15,184.11,4.80565167]
[1754903076262,15.10621557,184.14,184.07,0.06]
[1754903076445,15.10621557,184.14,184.1,4.80565167]
[1754903076837,15.10621557,184.14,184.11,4.80565167]
[1754903077647,5.43094552,184.13,184.12,4.80565167]
[1754903078162,5.43094552,184.13,184.07,0.06]
[1754903078343,5.43094552,184.13,184.11,4.80565167]
[1754903078546,5.43094552,184.13,184.07,0.06]
[1754903078746,5.43094552,184.13,184.11,4.80565167]
[1754903079557,5.43094552,184.13,184.12,0.06]
[1754903081284,5.43094552,184.13,184.12,4.86565167]
[1754903083969,5.43094552,184.13,184.12,0.06]
[1754903086475,58.69716109,184.13,184.12,0.06]
[1754903086982,63.50281276,184.13,184.12,0.06]
[1754903087557,58.69716109,184.13,184.12,0.06]
[1754903087974,63.50281276,184.13,184.12,0.06]
[1754903088984,63.50281276,184.13,184.12,1e-08]
[1754903090765,84.69716109,184.13,184.12,1e-08]
[1754903093581,46.53716109,184.13,184.12,1e-08]
[1754903093782,84.69716109,184.13,184.12,1e-08]
[1754903094983,46.53716109,184.13,184.12,1e-08]
[1754903095158,84.69716109,184.13,184.12,1e-08]
[1754903096084,89.23465981,184.13,184.12,1e-08]
[1754903096263,94.04031148,184.13,184.12,1e-08]
[1754903096585,63.50281276,184.13,184.12,1e-08]
[1754903096970,99.58561282,184.13,184.12,1e-08]
[1754903097982,101.76100382,184.13,184.12,1e-08]
[1754903099788,97.82331783,184.13,184.12,1e-08]
[1754903099969,45.91186724,184.09,184.08,1e-08]
[1754903100169,94.0748637,184.09,184.08,1e-08]
[1754903100358,89.50399283,184.09,184.07,1e-08]
[1754903100558,89.50399283,184.09,184.06,1e-08]
[1754903100559,15.10621557,184.07,184.06,1e-08]
[1754903100758,62.64406546,184.07,184.06,1e-08]
[1754903100972,24.48406546,184.07,184.06,1e-08]
[1754903101177,57.83841379,184.07,184.06,1e-08]
[1754903101388,24.48406546,184.07,184.06,1e-08]
[1754903101697,62.64406546,184.07,184.06,1e-08]
[1754903102061,63.50458305,184.07,184.06,1e-08]
[1754903102565,58.69893138,184.07,184.06,1e-08]
[1754903104907,63.50458305,184.07,184.06,1e-08]
[1754903105901,68.07678127,184.07,184.05,1e-08]
[1754903106107,19.91186724,184.06,184.05,1e-08]
[1754903107388,15.10621557,184.06,184.05,1e-08]
[1754903107772,20.53922654,184.06,184.05,1e-08]
[1754903108390,25.34487821,184.06,184.05,1e-08]
[1754903108596,20.53922654,184.06,184.05,1e-08]
[1754903108770,58.69922654,184.06,184.05,1e-08]
[1754903109286,63.50487821,184.06,184.05,1e-08]
[1754903111586,58.69922654,184.06,184.05,1e-08]
[1754903111978,46.53922654,184.06,184.05,4.80565168]
[1754903113109,20.53922654,184.06,184.05,4.80565168]
[1754903114104,20.53922654,184.06,184.05,1e-08]
[1754903114314,20.53922654,184.06,184.05,4.80565168]
[1754903114619,20.53922654,184.06,184.05,1e-08]
[1754903115117,20.53922654,184.06,184.05,4.80565168]
[1754903115884,5.43301097,184.06,184.05,4.80565168]
[1754903116179,5.43251848,184.08,184.05,4.80565168]
[1754903116397,5.43251848,184.08,184.07,4.80565167]
[1754903117297,5.43212559,184.09,184.07,4.80565167]
[1754903117998,20.53834116,184.09,184.08,4.80565167]
[1754903118872,20.53834116,184.09,184.05,1e-08]
[1754903119087,20.53834116,184.09,184.08,4.80565167]
[1754903120008,20.53834116,184.09,184.07,4.80565167]
[1754903120781,20.53834116,184.09,184.05,1e-08]
[1754903120982,20.53834116,184.09,184.07,4.80565167]
[1754903122417,20.53834116,184.09,184.06,4.80565167]
[1754903122585,20.53834116,184.09,184.07,4.80565167]
[1754903122782,20.53834116,184.09,184.05,1e-08]
[1754903123089,20.53834116,184.09,184.08,4.80565167]
[1754903124119,5.43212559,184.09,184.08,4.80565167]
[1754903124978,5.46182096,184.11,184.05,5.43329808]
[1754903125179,5.46182096,184.11,184.1,4.80565167]
[1754903128294,5.46182096,184.11,184.05,1e-08]
[1754903128794,5.46182096,184.11,184.1,4.80565167]
[1754903131784,0.03,184.11,184.1,4.80565167]
[1754903135905,0.03,184.11,184.1,9.61130334]
[1754903136291,0.03,184.11,184.1,15.04313386]
[1754903136612,0.03,184.11,184.1,24.65443686]
[1754903141481,0.03,184.11,184.1,19.22260634]
[1754903142194,0.03,184.11,184.1,24.65443686]
[1754903143991,0.03,184.11,184.1,19.22260634]
[1754903144607,0.03,184.11,184.1,14.41695467]
[1754903144807,0.03,184.11,184.06,75.4]
[1754903144989,0.03,184.11,184.09,4.80565167]
[1754903145590,0.03,184.11,184.05,1e-08]
[1754903145814,0.03,184.11,184.09,4.80565167]
[1754903146712,0.03,184.11,184.1,4.80565167]
[1754903147120,0.03,184.11,184.09,4.80565167]
[1754903147296,0.03,184.11,184.06,4.80565167]
[1754903147618,15.10621557,184.1,184.06,4.80565167]
[1754903148617,5.43212559,184.09,184.05,4.80565168]
[1754903148819,79.22621557,184.08,184.05,1e-08]
[1754903149005,5.43212559,184.09,184.07,4.80565167]
[1754903149231,5.43212559,184.09,184.08,4.80565167]
[1754903149734,5.43188654,184.1,184.08,4.80565167]
[1754903150032,5.43188654,184.1,184.09,4.80565167]
[1754903152234,20.53810211,184.1,184.09,4.80565167]
[1754903152415,20.53810211,184.1,184.08,4.80565167]
[1754903152617,15.10621557,184.09,184.07,4.80565167]
[1754903152854,5.43242068,184.08,184.06,4.80565167]
[1754903153137,5.43242068,184.08,184.07,4.80565167]
[1754903154748,19.01140683,184.1,184.07,4.80565167]
[1754903154947,19.01140683,184.1,184.08,4.80565167]
[1754903155543,20.53804609,184.1,184.09,4.80565167]
[1754903156022,20.53804609,184.1,184.05,1e-08]
[1754903156224,20.53804609,184.1,184.09,4.80565167]
[1754903156419,5.43183052,184.1,184.09,4.80565167]
[1754903159837,5.43183052,184.1,184.05,1e-08]
[1754903160050,5.43183052,184.1,184.09,4.80565167]
[1754903164556,0.03,184.11,184.09,4.80565167]
[1754903164734,0.03,184.11,184.1,9.61130334]
[1754903173564,0.03,184.11,184.1,4.80565167]
[1754903173931,0.03,184.11,184.09,4.80565167]
[1754903174151,0.03,184.11,184.1,4.80565167]
[1754903176374,0.03,184.11,184.05,1e-08]
[1754903176532,15.13621557,184.11,184.09,4.80565167]
[1754903177249,15.13621557,184.11,184.05,1e-08]
[1754903177438,15.13621557,184.11,184.07,4.80565167]
[1754903177641,15.13621557,184.11,184.05,1e-08]
[1754903177841,5.43183052,184.1,184.08,4.80565167]
[1754903178145,5.43183052,184.1,184.05,1e-08]
[1754903178353,5.43183052,184.1,184.08,4.80565167]
[1754903178538,19.01140683,184.1,184.05,1e-08]
[1754903178735,19.01140683,184.1,184.07,4.80565167]
[1754903179043,19.01140683,184.1,184.05,1e-08]
[1754903179244,19.91186724,184.09,184.05,1e-08]
[1754903179556,38.12,184.08,184.05,4.80565168]
[1754903179755,5.43301097,184.06,184.05,4.80565168]
[1754903179957,5.43301097,184.06,184.05,1e-08]
[1754903180760,5.43301097,184.06,184.05,4.80565168]
[1754903181134,5.43301097,184.06,184.05,1e-08]
[1754903182360,20.53893138,184.07,184.05,1e-08]
[1754903182740,20.53893138,184.07,184.05,4.80565168]
[1754903183246,20.53893138,184.07,184.05,1e-08]
[1754903186374,20.53893138,184.07,184.05,4.80565168]
[1754903186539,20.53893138,184.07,184.06,4.80565167]
[1754903186975,5.43271581,184.07,184.06,4.80565167]
[1754903187766,5.43212559,184.09,184.06,4.80565167]
[1754903187950,5.43212559,184.09,184.08,4.80565167]
[1754903188469,5.43183052,184.1,184.08,4.80565167]
[1754903188771,5.43183052,184.1,184.09,4.80565167]
[1754903188965,5.46183052,184.1,184.08,4.80565167]
[1754903190246,15.10621557,184.09,184.05,1e-08]
[1754903190441,15.10621557,184.09,184.06,4.80565167]
[1754903190645,5.43242068,184.08,184.06,4.80565167]
[1754903192378,5.43242068,184.08,184.05,1e-08]
[1754903192753,5.43242068,184.08,184.06,4.80565167]
[1754903193175,5.43242068,184.08,184.07,4.80565167]
[1754903194663,5.43242068,184.08,184.05,1e-08]
[1754903194866,5.43242068,184.08,184.07,4.80565167]
[1754903196149,5.43242068,184.08,184.06,4.80565167]
[1754903197255,5.43242068,184.08,184.07,4.80565167]
[1754903198873,5.43242068,184.08,184.05,1e-08]
[1754903199075,5.43242068,184.08,184.06,4.80565167]
[1754903199879,5.43242068,184.08,184.05,1e-08]
[1754903200076,5.43242068,184.08,184.05,4.80565168]
[1754903200265,5.43242068,184.08,184.06,4.80565167]
[1754903201163,5.43242068,184.08,184.05,1e-08]
[1754903201361,5.43242068,184.08,184.06,4.80565167]
[1754903201782,5.43242068,184.08,184.05,4.80565168]
[1754903201966,10.23807235,184.08,184.05,1e-08]
[1754903202857,15.10621557,184.07,184.05,1e-08]
[1754903203064,41.10621557,184.07,184.05,1e-08]
[1754903203267,20.53922654,184.06,184.05,1e-08]
[1754903204479,5.43301097,184.06,184.05,4.80565168]
[1754903205353,5.43271581,184.07,184.05,4.80565168]
[1754903205576,5.43271581,184.07,184.06,4.80565167]
[1754903207761,5.43242068,184.08,184.06,4.80565167]
[1754903207963,5.43242068,184.08,184.05,1e-08]
[1754903207964,5.43242068,184.08,184.07,4.80565167]
[1754903210690,5.43242068,184.08,184.05,1e-08]
[1754903210891,5.43242068,184.08,184.07,4.80565167]
[1754903211878,5.43242068,184.08,184.05,1e-08]
[1754903212090,15.10621557,184.07,184.05,4.80565168]
[1754903212387,15.10621557,184.07,184.06,4.80565167]
[1754903213281,15.10621557,184.07,184.05,1e-08]
[1754903213669,20.53893138,184.07,184.06,4.80565167]
[1754903214687,5.43271581,184.07,184.06,4.80565167]
[1754903214987,5.43247782,184.08,184.06,4.80565167]
[1754903215173,5.43247782,184.08,184.07,4.80565167]
[1754903224795,20.53869339,184.08,184.07,4.80565167]
[1754903225173,15.10621557,184.07,184.05,1e-08]
[1754903225582,19.68488798,184.07,184.05,4.80565168]
[1754903225987,19.68488798,184.07,184.05,1e-08]
[1754903226190,19.68488798,184.06,184.05,1e-08]
[1754903227015,58.63922654,184.06,184.05,1e-08]
[1754903227805,63.44487821,184.06,184.05,1e-08]
[1754903228288,15.10621557,184.05,184.01,0.06]
[1754903228491,19.68344811,184.03,184.01,0.06]
[1754903228799,15.10621557,184.03,184.02,4.80565167]
[1754903228972,20.54011221,184.03,184.02,4.80565167]
[1754903231081,20.54011221,184.03,184.01,0.06]
[1754903231298,20.54011221,184.03,184.02,4.80565167]
[1754903231614,20.54011221,184.03,184.01,0.06]
[1754903231780,20.54011221,184.03,184.01,4.86565167]
[1754903232400,20.54011221,184.03,184.01,0.06]
[1754903232612,63.44576388,184.03,184.01,0.06]
[1754903232777,15.10621557,184.02,184.01,0.06]
[1754903233107,20.5404075,184.02,184.01,4.86565167]
[1754903233489,15.10621557,184.03,184.01,4.86565167]
[1754903233694,15.10621557,184.03,184.01,0.06]
[1754903233899,5.43360139,184.04,184.02,4.80565167]
[1754903234110,5.43360139,184.04,184.01,0.06]
[1754903234289,5.43360139,184.04,184.02,4.80565167]
[1754903234487,5.43360139,184.04,184.03,4.80565167]
[1754903235310,5.43360139,184.04,184.02,4.80565167]
[1754903236011,5.43360139,184.04,184.03,4.80565167]
[1754903236700,20.53961026,184.05,184.03,4.80565167]
[1754903237022,20.53961026,184.05,184.04,4.80565167]
[1754903237209,26.0,184.07,184.04,4.80565167]
[1754903237408,0.03,184.08,184.06,4.80565167]
[1754903237709,0.03,184.08,184.07,4.80565167]
[1754903238707,5.46251247,184.08,184.07,4.80565167]
[1754903239011,0.03,184.08,184.07,4.80565167]
[1754903244814,0.03,184.08,184.01,5.49448725]
[1754903245013,0.03,184.08,184.07,4.80565167]
[1754903250817,0.03,184.08,184.07,10.23836748]
[1754903253920,0.03,184.08,184.07,4.80565167]
[1754903254832,0.03,184.08,184.07,10.23836748]
[1754903255332,0.03,184.1,184.07,53.14401915]
[1754903255504,0.03,184.1,184.09,9.61130334]
[1754903255904,0.03,184.1,184.09,4.80565167]
[1754903256625,0.03,184.1,184.09,9.61130334]
[1754903257138,0.03,184.1,184.09,15.04342893]
[1754903261134,0.03,184.1,184.09,9.61130334]
[1754903261506,0.03,184.1,184.09,15.04342893]
[1754903262044,0.03,184.11,184.1,9.61130334]
[1754903263342,0.03,184.11,184.1,15.04313386]
[1754903264018,0.03,184.11,184.1,9.61130334]
[1754903264818,0.03,184.11,184.1,15.04313386]
[1754903265013,0.03,184.11,184.1,9.61130334]
[1754903265240,0.03,184.11,184.1,4.80565167]
[1754903265485,0.03,184.11,184.1,42.88565167]
[1754903266018,0.03,184.11,184.1,38.08]
[1754903266241,0.03,184.11,184.1,42.88565167]
[1754903269439,0.03,184.11,184.1,38.08]
[1754903269640,0.03,184.11,184.1,42.88565167]
[1754903269879,0.03,184.11,184.1,4.80565167]
[1754903270563,0.03,184.11,184.09,4.80565167]
[1754903271247,0.03,184.11,184.06,38.08]
[1754903271445,0.03,184.11,184.09,4.80565167]
[1754903271643,0.03,184.11,184.08,4.80565167]
[1754903271876,5.46153549,184.11,184.08,4.80565167]
[1754903273137,5.46153549,184.11,184.09,4.80565167]
[1754903273342,20.56775106,184.11,184.1,4.80565167]
[1754903274471,20.56775106,184.11,184.09,4.80565167]
[1754903277752,20.56775106,184.11,184.06,38.08]
[1754903277974,20.56775106,184.11,184.09,4.80565167]
[1754903279360,20.56775106,184.11,184.09,4.86565167]
[1754903280272,20.56775106,184.11,184.09,0.06]
[1754903280273,15.10621557,184.1,184.09,0.06]
[1754903281467,20.53804609,184.1,184.09,0.06]
[1754903283776,55.89825257,184.1,184.09,1e-08]
[1754903283981,25.34369776,184.1,184.09,1e-08]
[1754903284175,60.20934976,184.1,184.09,1e-08]
[1754903284777,64.77980199,184.1,184.09,1e-08]
[1754903285185,34.77980199,184.1,184.09,1e-08]
[1754903289294,29.97415032,184.1,184.09,1e-08]
[1754903289470,34.77980199,184.1,184.09,1e-08]
[1754903292197,30.20934976,184.1,184.09,1e-08]
[1754903293491,25.40369809,184.1,184.09,1e-08]
[1754903293679,20.53804609,184.1,184.09,1e-08]
[1754903293880,46.53804609,184.1,184.09,1e-08]
[1754903299217,84.61804609,184.1,184.09,1e-08]
[1754903299378,46.53804609,184.1,184.09,1e-08]
[1754903301781,5.46183052,184.1,184.09,4.80565168]
[1754903302178,0.03,184.1,184.09,4.80565168]
[1754903302379,0.03,184.1,184.09,1e-08]
[1754903302601,0.03,184.1,184.09,9.61130335]
[1754903303310,0.03,184.11,184.1,9.61130334]
[1754903305211,0.03,184.11,184.1,15.04313386]
[1754903306303,0.03,184.11,184.1,9.61130334]
[1754903308713,0.03,184.11,184.1,15.04313386]
[1754903310115,0.03,184.11,184.1,9.61130334]
[1754903310585,0.03,184.11,184.1,15.04313386]
[1754903312885,0.03,184.11,184.1,9.61130334]
[1754903313490,0.03,184.11,184.1,15.04313386]
[1754903316488,0.03,184.12,184.1,15.04313386]
[1754903316709,0.03,184.13,184.11,4.80565167]
[1754903317015,0.03,184.15,184.12,4.80565167]
[1754903317210,0.03,184.15,184.14,4.80565167]
[1754903318388,0.03,184.17,184.14,10.23606458]
[1754903318609,0.03,184.17,184.15,4.80565167]
[1754903318808,0.03,184.17,184.16,4.80565167]
[1754903320007,0.03,184.2,184.16,10.23571248]
[1754903320316,0.03,184.2,184.17,4.80565167]
[1754903321233,0.03,184.2,184.17,9.61130334]
[1754903321401,0.03,184.2,184.19,9.61130334]
[1754903326809,0.03,184.2,184.19,11.78444834]
[1754903327624,0.03,184.22,184.19,17.21362473]
[1754903327821,0.03,184.22,184.21,4.80565167]
[1754903328533,0.03,184.22,184.21,6.97844267]
[1754903328932,0.03,184.22,184.21,2.172791]
[1754903329141,0.03,184.22,184.21,4.80565167]
[1754903330533,0.03,184.22,184.2,4.80565167]
[1754903331017,0.03,184.22,184.21,4.80565167]
[1754903336231,0.03,184.22,184.2,4.80565167]
[1754903336619,0.03,184.22,184.21,4.80565167]
[1754903339641,0.03,184.22,184.17,38.04]
[1754903339816,0.03,184.22,184.21,4.80565167]
[1754903343845,0.03,184.22,184.2,4.80565167]
[1754903344025,0.03,184.22,184.19,4.80565167]
[1754903344542,0.03,184.22,184.2,4.80565167]
[1754903348538,0.03,184.22,184.19,0.06]
[1754903349025,0.03,184.22,184.19,4.86565167]
[1754903349224,5.42858693,184.21,184.19,0.06]
[1754903349547,15.10621557,184.2,184.19,0.06]
[1754903349730,45.91186724,184.2,184.19,1e-08]
[1754903349936,48.08607624,184.2,184.19,1e-08]
[1754903350934,52.62698697,184.2,184.19,1e-08]
[1754903351138,48.08607624,184.2,184.19,1e-08]
[1754903351328,58.07411568,184.2,184.19,1e-08]
[1754903352125,53.51495789,184.2,184.19,1e-08]
[1754903352429,32.07403948,184.2,184.19,1e-08]
[1754903352628,26.0,184.17,184.15,1e-08]
[1754903352844,57.95186724,184.16,184.15,1e-08]
[1754903353554,63.38192805,184.16,184.15,1e-08]
[1754903355940,58.57627638,184.16,184.15,1e-08]
[1754903356254,63.38192805,184.16,184.15,1e-08]
[1754903364155,68.18757905,184.16,184.15,1e-08]
[1754903364355,58.57627638,184.16,184.15,1e-08]
[1754903364668,63.38192805,184.16,184.15,1e-08]
[1754903366369,63.41192805,184.16,184.15,1e-08]
[1754903369767,93.41192805,184.16,184.15,1e-08]
[1754903370474,63.41192805,184.16,184.15,1e-08]
[1754903371556,68.21757905,184.16,184.15,1e-08]
[1754903374578,98.21757905,184.16,184.15,1e-08]
[1754903376248,68.21757905,184.16,184.15,1e-08]
[1754903376878,63.41192738,184.16,184.15,1e-08]
[1754903377175,58.60627638,184.16,184.15,1e-08]
[1754903377560,63.41192805,184.16,184.15,1e-08]
[1754903378875,93.41192805,184.16,184.15,1e-08]
[1754903380268,63.41192805,184.16,184.15,1e-08]
[1754903381385,89.41192805,184.16,184.15,1e-08]
[1754903382666,84.60627638,184.16,184.15,1e-08]
[1754903382876,89.41192805,184.16,184.15,1e-08]
[1754903383972,93.97129531,184.16,184.15,1e-08]
[1754903384282,67.97129531,184.16,184.15,1e-08]
[1754903384474,97.97129531,184.16,184.15,1e-08]
[1754903386466,93.41192805,184.16,184.15,1e-08]
[1754903386998,26.0,184.14,184.13,1e-08]
[1754903387171,68.84565167,184.14,184.13,1e-08]
[1754903388406,89.38251783,184.14,184.13,1e-08]
[1754903389304,15.10621557,184.13,184.11,1e-08]
[1754903389465,42.84565167,184.12,184.11,1e-08]
[1754903389796,62.51321443,184.12,184.11,1e-08]
[1754903390497,29.90445492,184.12,184.11,1e-08]
[1754903390665,67.94445492,184.12,184.11,1e-08]
[1754903391892,63.38310773,184.12,184.11,1e-08]
[1754903392789,93.38310773,184.12,184.11,1e-08]
[1754903393115,95.52844592,184.12,184.11,1e-08]
[1754903393393,15.10621557,184.08,184.07,1e-08]
[1754903393579,53.14621557,184.08,184.07,1e-08]
[1754903394476,58.57863625,184.08,184.07,1e-08]
[1754903395073,63.38428792,184.08,184.07,1e-08]
[1754903395789,67.95607514,184.08,184.07,1e-08]
[1754903395998,67.95607514,184.08,184.03,0.06]
[1754903395999,41.10621557,184.05,184.03,0.06]
[1754903396508,20.53981696,184.04,184.03,0.06]
[1754903398606,58.57981696,184.04,184.03,0.06]
[1754903400690,20.53981696,184.04,184.03,0.06]
[1754903401089,20.53981696,184.04,184.03,4.86565167]
[1754903402511,20.53981696,184.04,184.03,0.06]
[1754903405831,41.10621557,184.02,184.01,0.06]
[1754903405991,69.47360139,184.04,184.01,4.86565167]
[1754903406311,84.57981696,184.04,184.03,4.80565167]
[1754903406488,46.53981696,184.04,184.03,4.80565167]
[1754903406690,5.43360139,184.04,184.03,4.80565167]
[1754903407326,15.10621557,184.06,184.03,4.80565167]
[1754903407327,5.43330616,184.05,184.03,4.80565167]
[1754903407621,5.43330616,184.05,184.04,4.80565167]
[1754903408701,5.43330616,184.05,184.03,4.80565167]
[1754903409017,5.43330616,184.05,184.03,4.86565167]
[1754903409430,5.43330616,184.05,184.03,0.06]
[1754903409596,5.43330616,184.05,184.03,4.86565167]
[1754903410995,5.43330616,184.05,184.03,0.06]
[1754903411200,5.43330616,184.05,184.03,4.86565167]
[1754903412606,20.53952173,184.05,184.04,4.80565167]
[1754903413519,5.43330616,184.05,184.04,4.80565167]
[1754903414619,5.43301097,184.06,184.04,4.80565167]
[1754903416832,5.43301097,184.06,184.05,4.80565167]
[1754903418151,5.4327099,184.08,184.05,4.80565167]
[1754903418304,20.53892547,184.08,184.07,4.80565167]
[1754903418833,20.53892547,184.08,184.06,4.80565167]
[1754903419706,20.53892547,184.08,184.05,4.80565167]
[1754903419912,20.53892547,184.08,184.04,4.80565167]
[1754903420329,20.53892547,184.08,184.06,4.80565167]
[1754903420835,20.53892547,184.08,184.05,4.80565167]
[1754903421436,20.53892547,184.08,184.03,4.86565167]
[1754903421437,15.10621557,184.07,184.03,4.86565167]
[1754903421617,15.10621557,184.05,184.03,0.06]
[1754903421810,19.91186724,184.05,184.03,0.06]
[1754903422210,19.91186724,184.04,184.03,0.06]
[1754903422409,15.10621557,184.04,184.03,0.06]
[1754903422833,20.53981696,184.04,184.03,0.06]
[1754903423533,58.55981696,184.04,184.03,0.06]
[1754903425204,5.43360139,184.04,184.03,0.06]
[1754903425532,5.43360139,184.04,184.03,4.86565167]
[1754903426111,5.43360139,184.04,184.03,0.06]
[1754903431051,5.43360139,184.04,184.03,4.86565167]
[1754903431935,5.43360139,184.04,184.03,0.06]
[1754903432331,5.43360139,184.04,184.03,4.86565167]
[1754903432718,5.43360139,184.04,184.03,0.06]
[1754903433642,67.93725585,184.04,184.03,0.06]
[1754903434149,89.36546863,184.04,184.03,1e-08]
[1754903435216,4.80565167,184.02,184.01,1e-08]
[1754903435544,73.40124083,184.02,184.01,1e-08]
[1754903435844,68.82565167,184.02,184.01,1e-08]
[1754903436644,74.2598436,184.02,184.01,1e-08]
[1754903436838,78.83433205,184.02,184.01,1e-08]
[1754903439046,74.2598436,184.02,184.01,1e-08]
[1754903439546,78.83433205,184.02,184.01,1e-08]
[1754903439949,89.36605917,184.02,184.01,1e-08]
[1754903440122,93.94054762,184.02,184.01,1e-08]
[1754903440321,70.11700462,184.02,184.01,1e-08]
[1754903440721,26.0,184.0,183.99,0.06]
[1754903441042,68.82565167,184.0,183.99,0.06]
[1754903441344,64.02,184.0,183.99,0.06]
[1754903442450,84.56099817,184.0,183.99,0.06]
[1754903442621,46.54099817,184.0,183.99,4.86565167]
[1754903442827,20.54099817,184.0,183.99,4.86565167]
[1754903443328,20.54099817,184.0,183.99,0.06]
[1754903444463,5.43453014,184.01,183.99,4.86565167]
[1754903444624,5.43453014,184.01,184.0,4.80565167]
[1754903444824,5.43453014,184.01,183.99,0.06]
[1754903445043,5.43453014,184.01,184.0,4.80565167]
[1754903445321,5.43453014,184.01,183.99,0.06]
[1754903445322,20.54074571,184.01,183.99,0.06]
[1754903446146,15.10621557,184.0,183.99,0.06]
[1754903446746,20.54099817,184.0,183.99,4.86565167]
[1754903447944,31.43429371,184.02,183.99,4.86565167]
[1754903448153,31.43429371,184.02,183.99,0.06]
[1754903448328,20.54050928,184.02,184.01,4.80565167]
[1754903448847,5.43392158,184.03,183.99,0.06]
[1754903449062,5.43392158,184.03,184.02,4.80565167]
[1754903450932,20.53952173,184.05,184.02,4.80565167]
[1754903451125,20.53952173,184.05,183.99,0.06]
[1754903451327,34.12278714,184.05,184.01,4.80565167]
[1754903451944,20.53952173,184.05,184.03,4.80565167]
[1754903452828,20.53952173,184.05,183.99,0.06]
[1754903453171,20.53952173,184.05,184.03,4.80565167]
[1754903453648,5.43330616,184.05,184.04,4.80565167]
[1754903454953,5.43330616,184.05,184.03,4.80565167]
[1754903456036,5.43330616,184.05,184.04,4.80565167]
[1754903457951,5.43330616,184.05,183.99,0.06]
[1754903457952,15.10621557,184.04,184.02,4.80565167]
[1754903459142,5.43389664,184.03,184.02,4.80565167]
[1754903459637,64.05,184.06,184.02,4.80565167]
[1754903459833,64.05,184.06,184.04,4.80565167]
[1754903460960,5.43330616,184.05,184.04,4.80565167]
[1754903461259,5.43330616,184.05,184.03,4.80565167]
[1754903463452,5.43330616,184.05,184.04,4.80565167]
[1754903463756,5.43330616,184.05,184.03,4.80565167]
[1754903464655,5.43330616,184.05,184.04,4.80565167]
[1754903464850,5.46311891,184.06,184.04,4.80565167]
[1754903465161,20.56933448,184.06,184.05,4.80565167]
[1754903465534,34.15186191,184.06,183.99,0.06]
[1754903465733,34.15186191,184.06,184.03,4.80565167]
[1754903466561,15.10621557,184.05,183.99,0.06]
[1754903466779,15.10621557,184.05,184.02,4.80565167]
[1754903466938,53.10621557,184.05,184.02,4.80565167]
[1754903467553,5.43360139,184.04,184.03,4.80565167]
[1754903468356,5.43360139,184.04,183.99,0.06]
[1754903468558,5.43360139,184.04,184.03,4.80565167]
[1754903474365,5.43360139,184.04,183.99,0.06]
[1754903474665,5.43360139,184.04,184.03,4.80565167]
[1754903481173,5.43360139,184.04,184.02,4.80565167]
[1754903481473,5.43360139,184.04,183.99,0.06]
[1754903481474,19.91186724,184.03,183.99,0.06]
[1754903481649,15.10621557,184.03,183.99,4.86565167]
[1754903481970,53.10621557,184.03,183.99,4.86565167]
[1754903482847,5.43419193,184.02,183.99,4.86565167]
[1754903484853,5.43419193,184.02,183.99,0.06]
[1754903485052,5.43419193,184.02,183.99,4.86565167]
[1754903485453,5.43419193,184.02,183.99,0.06]
[1754903486769,15.10621557,184.01,183.99,0.06]
[1754903487151,20.54099817,184.0,183.99,4.86565167]
[1754903489867,20.54099817,184.0,183.99,0.06]
[1754903490067,20.54099817,184.0,183.99,4.86565167]
[1754903490279,20.54099817,184.0,183.99,0.06]
[1754903497457,63.34664984,184.0,183.99,1e-08]
[1754903497656,41.10621557,183.98,183.97,0.06]